bitfinex-derivatives/quotes_SOLF0:USTF0_20251209
["timestamp","ask_amount","ask_price","bid_price","bid_amount"]
[1765279624955,0.03281789,132.78,132.77,6.7787]
[1765279625155,0.03281789,132.78,132.77,70.8187]
[1765279625356,0.03281789,132.78,132.77,70.7987]
[1765279625568,0.03281789,132.78,132.77,6.7787]
[1765279625763,0.03281789,132.78,132.77,70.7987]
[1765279626059,0.03281789,132.78,132.77,6.7787]
[1765279626371,0.03281789,132.78,132.77,70.7987]
[1765279630061,0.03281789,132.78,132.77,6.7787]
[1765279632065,3.35281789,132.78,132.77,6.7787]
[1765279632568,0.03281789,132.78,132.77,6.7787]
[1765279655392,3.37,132.83,132.78,105.4353]
[1765279655691,3.37,132.83,132.79,66.05175909]
[1765279656280,3.37,132.83,132.8,0.0480347]
[1765279656890,12.17745909,132.83,132.8,0.0480347]
[1765279657088,3.37,132.81,132.8,0.0480347]
[1765279657390,3.37,132.8,132.75,105.4606]
[1765279657585,3.37,132.8,132.73,107.4765]
[1765279657586,3.37,132.78,132.76,6.7789]
[1765279657889,3.37,132.78,132.73,105.4765]
[1765279658196,3.37,132.78,132.74,6.78]
[1765279658388,0.0480347,132.77,132.75,0.05125192]
[1765279658588,3.37,132.76,132.75,0.05125192]
[1765279659199,3.4180347,132.77,132.75,0.05125192]
[1765279665493,3.4180347,132.77,132.75,6.83095192]
[1765279672211,3.4180347,132.77,132.75,0.05125192]
[1765279673105,3.4180347,132.77,132.75,6.83095192]
[1765279674113,3.4180347,132.77,132.75,0.05125192]
[1765279674810,3.4180347,132.77,132.75,6.83095192]
[1765279679216,3.21,132.76,132.75,0.05125192]
[1765279679719,15.69772957,132.76,132.75,0.05125192]
[1765279682121,9.9892,132.76,132.75,0.05125192]
[1765279698232,15.69583551,132.76,132.75,0.05125192]
[1765279700344,21.31583271,132.76,132.75,0.05125192]
[1765279709153,14.53663271,132.76,132.75,0.05125192]
[1765279709657,6.8268347,132.77,132.75,0.05125192]
[1765279709658,0.0480347,132.77,132.75,0.05125192]
[1765279710152,3.3480347,132.77,132.75,0.05125192]
[1765279710649,3.3480347,132.77,132.75,6.83095192]
[1765279713147,3.3480347,132.77,132.75,0.05125192]
[1765279719860,3.3480347,132.77,132.75,6.83085192]
[1765279724261,0.0480347,132.77,132.76,6.7792]
[1765279724663,3.3480347,132.77,132.76,6.7792]
[1765279724862,0.0480347,132.77,132.76,6.7792]
[1765279727854,3.3480347,132.77,132.76,6.7792]
[1765279728364,3.3480347,132.77,132.75,6.83095192]
[1765279749079,5.71161076,132.76,132.75,6.83095192]
[1765279749976,9.05161076,132.76,132.75,6.83095192]
[1765279750674,9.05161076,132.76,132.75,0.05125192]
[1765279753281,14.55900848,132.76,132.75,0.05125192]
[1765279753478,9.05161076,132.76,132.75,0.05125192]
[1765279755072,3.34,132.75,132.71,6.7817]
[1765279755277,3.34,132.73,132.68,107.54938425]
[1765279755774,13.82207735,132.77,132.68,107.54938425]
[1765279755972,11.22109963,132.76,132.72,2.03308425]
[1765279756174,0.04812788,132.74,132.72,2.03308425]
[1765279757471,0.04812788,132.74,132.73,6.7807]
[1765279761571,3.34,132.77,132.72,2.03308425]
[1765279761775,7.04297735,132.79,132.72,107.51698425]
[1765279761776,3.34,132.79,132.72,107.51698425]
[1765279761976,11.16179569,132.78,132.72,107.51698425]
[1765279762172,11.16179569,132.77,132.72,107.51698425]
[1765279762380,3.34,132.79,132.72,107.51698425]
[1765279762582,11.16198468,132.78,132.72,107.51698425]
[1765279762885,14.55314342,132.77,132.74,0.05130444]
[1765279763185,3.39115874,132.77,132.74,0.05130444]
[1765279763582,3.39115874,132.77,132.75,6.7794]
[1765279774413,8.99779308,132.76,132.75,6.7794]
[1765279774908,5.68779308,132.76,132.75,6.7794]
[1765279775109,3.36115874,132.77,132.75,6.7794]
[1765279775302,8.99787469,132.76,132.75,6.7794]
[1765279792515,5.68787469,132.76,132.75,6.7794]
[1765279792817,0.05115874,132.77,132.75,6.7794]
[1765279793220,3.36115874,132.77,132.75,6.7794]
[1765279796625,5.68482957,132.76,132.75,6.7794]
[1765279799421,9.07482957,132.76,132.75,6.7794]
[1765279801225,9.07482957,132.76,132.74,6.83150444]
[1765279801524,3.39,132.75,132.74,6.83150444]
[1765279801713,9.07894593,132.75,132.74,6.83150444]
[1765279803219,9.07894593,132.75,132.74,0.05130444]
[1765279803927,3.27,132.74,132.7,64.04]
[1765279804223,3.27,132.74,132.68,171.58938425]
[1765279805128,0.05197495,132.72,132.7,0.05765718]
[1765279805527,0.05197495,132.72,132.71,6.7817]
[1765279806722,3.32197495,132.72,132.71,6.7817]
[1765279808431,3.32197495,132.72,132.7,6.83995718]
[1765279808831,3.32197495,132.72,132.7,0.05765718]
[1765279810529,3.27,132.71,132.7,0.05765718]
[1765279812626,10.0518,132.71,132.7,0.05765718]
[1765279814635,3.27,132.7,132.67,6.7836]
[1765279815740,3.32301415,132.7,132.67,6.83687119]
[1765279819938,3.32301415,132.7,132.67,0.05327119]
[1765279820137,3.27,132.68,132.67,0.05327119]
[1765279821437,10.0533,132.68,132.67,0.05327119]
[1765279823741,3.27,132.68,132.67,0.05327119]
[1765279824545,10.0533,132.68,132.67,0.05327119]
[1765279825031,3.27,132.67,132.63,6.7854]
[1765279825234,3.27,132.67,132.64,6.7854]
[1765279825530,3.27,132.67,132.61,64.06]
[1765279825531,3.27,132.67,132.62,105.5661]
[1765279825736,10.0533,132.69,132.62,105.5661]
[1765279825933,3.27,132.67,132.64,0.05229126]
[1765279826241,3.32343887,132.67,132.64,0.05634253]
[1765279827551,3.32343887,132.67,132.64,6.84174253]
[1765279828840,3.11,132.66,132.64,0.05634253]
[1765279830537,9.8943,132.66,132.64,0.05634253]
[1765279830733,3.11,132.65,132.64,0.05634253]
[1765279834948,3.11,132.66,132.64,0.05634253]
[1765279836054,9.94723887,132.67,132.64,0.05634253]
[1765279837153,3.11,132.66,132.64,0.05634253]
[1765279837453,3.11,132.66,132.64,6.84164253]
[1765279838641,0.05343887,132.67,132.64,6.84164253]
[1765279838847,3.16343887,132.67,132.65,6.7848]
[1765279848165,3.16343887,132.67,132.66,6.7843]
[1765279849360,0.05343887,132.67,132.66,6.7843]
[1765279853769,0.05343887,132.67,132.65,6.7848]
[1765279853770,3.16343887,132.67,132.65,6.7848]
[1765279859976,0.05343887,132.67,132.66,6.7843]
[1765279870690,0.05343887,132.67,132.66,8.81915622]
[1765279870895,0.05343887,132.67,132.66,6.7843]
[1765279871796,9.8507,132.74,132.67,105.527]
[1765279872089,3.07,132.72,132.68,66.11485622]
[1765279872395,3.07,132.74,132.71,6.7818]
[1765279872781,3.12209401,132.74,132.71,6.83193295]
[1765279873191,0.05209401,132.74,132.71,0.05013295]
[1765279874195,0.05209401,132.74,132.73,6.7808]
[1765279883602,3.12209401,132.74,132.71,6.83143295]
[1765279884494,11.93725023,132.74,132.71,0.05013295]
[1765279884700,3.07,132.73,132.71,0.05013295]
[1765279892706,3.22,132.72,132.66,107.56385622]
[1765279893505,0.05658309,132.7,132.68,0.05287307]
[1765279893802,3.27658309,132.7,132.68,0.05287307]
[1765279894706,3.27658309,132.7,132.68,6.83577307]
[1765279898211,3.27658309,132.7,132.69,6.7828]
[1765279898708,0.05658309,132.7,132.69,6.7828]
[1765279905318,3.22,132.77,132.7,105.4994]
[1765279905513,9.36921068,132.8,132.7,105.4994]
[1765279905514,3.22,132.79,132.73,2.03485622]
[1765279905713,3.22,132.77,132.73,2.03485622]
[1765279906213,0.04925025,132.76,132.74,0.05467523]
[1765279906616,0.04925025,132.76,132.75,6.7797]
[1765279916321,0.04925025,132.76,132.75,8.81455622]
[1765279918529,3.22,132.79,132.78,6.7782]
[1765279919224,3.26,132.82,132.78,6.7782]
[1765279919528,3.26,132.8,132.78,6.7782]
[1765279919723,3.26,132.8,132.79,0.05237232]
[1765279923732,3.26,132.8,132.79,6.83007232]
[1765279924029,3.26,132.8,132.79,0.05237232]
[1765279935432,3.26,132.8,132.74,105.4663]
[1765279935635,3.26,132.8,132.75,105.4624]
[1765279936332,0.05325137,132.79,132.76,0.05000445]
[1765279936939,3.35325137,132.79,132.76,0.05000445]
[1765279937537,3.35325137,132.79,132.78,6.7782]
[1765279937944,0.05325137,132.79,132.78,6.7782]
[1765279938534,0.05325137,132.79,132.78,8.2782]
[1765279939342,0.05325137,132.79,132.78,6.7782]
[1765279939741,3.35325137,132.79,132.78,6.7782]
[1765279941141,3.35325137,132.79,132.77,6.7787]
[1765279942247,0.05325137,132.79,132.78,6.7782]
[1765279946454,3.35325137,132.79,132.77,6.7787]
[1765279953654,3.35325137,132.79,132.76,6.82920445]
[1765279954364,3.13,132.77,132.76,6.82920445]
[1765279956154,3.13,132.77,132.76,0.05000445]
[1765279960959,9.9087,132.77,132.76,0.05000445]
[1765279961166,15.54480524,132.77,132.76,0.05000445]
[1765279972073,3.13,132.75,132.72,6.7812]
[1765279972974,3.17817652,132.75,132.72,6.83191016]
[1765279973175,3.13,132.74,132.72,6.83191016]
[1765279973376,3.13,132.74,132.72,0.05071016]
[1765279973772,9.9108,132.73,132.72,0.05071016]
[1765279977173,15.53044249,132.73,132.72,0.05071016]
[1765279977372,9.9108,132.73,132.72,0.05071016]
[1765279977879,9.9108,132.73,132.72,0.00071016]
[1765279978071,9.9108,132.73,132.69,6.7823]
[1765279978378,3.35,132.72,132.69,6.7823]
[1765279979094,3.40195266,132.72,132.69,6.83397264]
[1765279980182,10.18335266,132.72,132.69,0.05167264]
[1765279980586,3.35,132.71,132.69,0.05167264]
[1765279980984,0.05195266,132.72,132.69,0.05167264]
[1765279981388,3.40195266,132.72,132.69,0.05167264]
[1765279982594,3.40195266,132.72,132.7,6.7823]
[1765279983191,3.40195266,132.72,132.69,6.83447264]
[1765279983395,3.40195266,132.72,132.69,0.05167264]
[1765279984081,3.21,132.71,132.69,0.05167264]
[1765279984992,3.26195266,132.72,132.69,0.05167264]
[1765279986595,3.26195266,132.72,132.7,6.7823]
[1765279993005,5.29640218,132.72,132.69,0.05167264]
[1765279993204,3.21,132.71,132.69,0.05167264]
[1765279995502,3.21,132.71,132.69,6.83447264]
[1765280001109,3.26195266,132.72,132.7,6.7822]
[1765280003908,0.05195266,132.72,132.71,6.7818]
[1765280007016,3.26195266,132.72,132.71,6.7818]
[1765280010718,3.26195266,132.72,132.69,6.83397264]
[1765280014719,3.26195266,132.72,132.7,6.7821]
[1765280014918,0.05195266,132.72,132.7,6.7821]
[1765280015416,0.05195266,132.72,132.71,6.7818]
[1765280016018,0.05195266,132.72,132.71,8.81624952]
[1765280040832,0.05195266,132.72,132.71,6.7818]
[1765280042631,3.31195266,132.72,132.7,6.7823]
[1765280043229,3.31195266,132.72,132.69,64.11167264]
[1765280043429,3.31195266,132.72,132.69,0.05167264]
[1765280044734,3.31195266,132.72,132.69,6.83427264]
[1765280048242,3.31195266,132.72,132.7,6.7823]
[1765280052053,3.31195266,132.72,132.69,0.05167264]
[1765280052249,3.21,132.71,132.69,0.05167264]
[1765280052650,3.21,132.7,132.69,0.05167264]
[1765280052850,8.82961577,132.7,132.69,0.05167264]
[1765280053248,3.21,132.7,132.69,0.05167264]
[1765280053854,6.83325266,132.72,132.69,0.05167264]
[1765280053855,3.21,132.71,132.69,0.05167264]
[1765280055451,3.21,132.71,132.69,6.83447264]
[1765280056746,3.26195266,132.72,132.7,6.7823]
[1765280057354,0.05195266,132.72,132.7,6.7823]
[1765280058049,3.26195266,132.72,132.7,6.7823]
[1765280065363,3.26195266,132.72,132.71,6.7818]
[1765280067053,0.05195266,132.72,132.71,6.7818]
[1765280076452,3.16195266,132.72,132.71,6.7818]
[1765280078360,3.16195266,132.72,132.69,6.83397264]
[1765280079371,3.16195266,132.72,132.7,6.7821]
[1765280091687,3.16195266,132.72,132.71,6.7818]
[1765280099282,0.05195266,132.72,132.71,6.7818]
[1765280109691,0.05195266,132.72,132.71,70.8418]
[1765280109894,0.00195266,132.72,132.71,70.8418]
[1765280110088,3.39,132.78,132.76,6.7791]
[1765280110286,5.58792865,132.77,132.76,6.7791]
[1765280110686,3.39,132.8,132.77,6.7787]
[1765280110891,3.39,132.78,132.77,6.7787]
[1765280111093,8.97751662,132.78,132.77,6.7787]
[1765280111292,3.39,132.78,132.77,6.7787]
[1765280113196,3.39,132.79,132.78,6.7781]
[1765280113395,8.960797,132.79,132.78,6.7781]
[1765280113899,0.0543848,132.8,132.76,171.59935712]
[1765280115593,0.0543848,132.8,132.79,6.7777]
[1765280115793,3.4443848,132.8,132.76,66.14785712]
[1765280115996,3.4443848,132.8,132.76,0.05548411]
[1765280116390,3.4443848,132.8,132.76,2.08785712]
[1765280118099,3.4443848,132.8,132.79,6.7777]
[1765280124010,0.0543848,132.8,132.79,6.7777]
[1765280136405,3.4443848,132.8,132.79,6.7777]
[1765280136823,3.4443848,132.8,132.77,6.7782]
[1765280137013,3.4443848,132.8,132.76,0.05548411]
[1765280138014,3.4443848,132.8,132.78,6.7782]
[1765280142220,3.4443848,132.8,132.76,6.83438411]
[1765280142624,3.4443848,132.8,132.76,0.05548411]
[1765280143218,2.03237301,132.79,132.76,0.05548411]
[1765280143418,3.39,132.78,132.76,0.05548411]
[1765280144129,3.39,132.76,132.69,105.5103]
[1765280144420,5.42237301,132.75,132.69,105.5103]
[1765280145026,0.0550407,132.73,132.71,0.05709274]
[1765280145628,0.0550407,132.73,132.72,6.7812]
[1765280145921,3.4450407,132.73,132.71,0.05709274]
[1765280156138,3.4450407,132.73,132.71,6.83879274]
[1765280160235,5.47741371,132.73,132.71,0.05709274]
[1765280160430,3.23,132.72,132.71,0.05709274]
[1765280162434,0.0550407,132.73,132.71,0.05709274]
[1765280162637,3.2850407,132.73,132.71,0.05709274]
[1765280168847,3.23,132.72,132.65,4.03237301]
[1765280169055,2.03237301,132.71,132.65,4.03237301]
[1765280169250,2.03237301,132.71,132.65,2.03237301]
[1765280169251,3.23,132.7,132.65,2.03237301]
[1765280169937,3.28220479,132.69,132.66,0.05346467]
[1765280170449,3.28220479,132.69,132.67,6.7834]
[1765280175743,3.23,132.68,132.66,0.05346467]
[1765280179252,3.23,132.68,132.66,6.83746467]
[1765280182153,3.23,132.68,132.67,6.7838]
[1765280182853,3.23,132.68,132.66,0.05346467]
[1765280183958,3.23,132.68,132.66,6.83736467]
[1765280186550,3.28220479,132.69,132.67,6.7838]
[1765280186744,3.28220479,132.69,132.66,0.05346467]
[1765280186745,0.05220479,132.69,132.66,0.05346467]
[1765280188552,0.05220479,132.69,132.68,6.7833]
[1765280190658,0.05220479,132.69,132.66,0.05346467]
[1765280190659,3.24220479,132.69,132.66,6.83726467]
[1765280191964,3.19,132.68,132.66,6.83726467]
[1765280211775,3.19,132.68,132.66,0.05346467]
[1765280211978,3.19,132.68,132.67,6.7838]
[1765280212178,3.24220479,132.69,132.67,6.7838]
[1765280216176,0.05220479,132.69,132.68,6.7833]
[1765280219986,0.05220479,132.69,132.68,8.2833]
[1765280220188,3.3,132.75,132.72,6.7813]
[1765280220389,5.57626888,132.74,132.72,6.7813]
[1765280220589,3.3,132.75,132.72,6.7813]
[1765280220887,3.3,132.75,132.68,105.5152]
[1765280220888,3.3,132.75,132.69,108.6881674]
[1765280221088,0.05266462,132.73,132.71,0.05735404]
[1765280221279,0.0491365,132.73,132.71,0.05735404]
[1765280221484,0.0491365,132.73,132.72,6.7813]
[1765280227088,3.3,132.79,132.72,105.481]
[1765280228186,3.35031857,132.77,132.74,0.05586647]
[1765280228588,3.35031857,132.77,132.75,6.7793]
[1765280233397,0.05031857,132.77,132.75,6.7793]
[1765280233798,0.05031857,132.77,132.76,6.7792]
[1765280237896,3.35031857,132.77,132.76,6.7792]
[1765280240202,0.05031857,132.77,132.76,6.7792]
[1765280245510,3.35031857,132.77,132.74,0.05586647]
[1765280246609,3.3,132.76,132.74,0.05586647]
[1765280247405,3.3,132.76,132.74,6.83606647]
[1765280248207,3.16031857,132.77,132.75,6.7796]
[1765280254909,0.05031857,132.77,132.76,6.7792]
[1765280255302,0.05031857,132.77,132.74,2.08816896]
[1765280255303,3.16031857,132.77,132.75,6.7797]
[1765280255610,3.16031857,132.77,132.74,0.05586647]
[1765280256612,0.05031857,132.77,132.74,0.05586647]
[1765280257504,0.05031857,132.77,132.75,6.7797]
[1765280258716,3.16031857,132.77,132.75,6.7797]
[1765280259215,3.16031857,132.77,132.76,6.7792]
[1765280259216,0.05031857,132.77,132.76,6.7792]
[1765280261221,3.16031857,132.77,132.75,6.7797]
[1765280265908,3.16031857,132.77,132.76,6.7792]
[1765280266114,8.72730617,132.77,132.76,6.7792]
[1765280268417,5.61730617,132.77,132.76,6.7792]
[1765280269422,0.05031857,132.77,132.76,6.7792]
[1765280274424,10.16090768,132.81,132.78,6.778]
[1765280274725,8.66539892,132.8,132.78,6.778]
[1765280274916,5.55539892,132.79,132.78,6.778]
[1765280275117,3.11,132.8,132.78,6.778]
[1765280275519,3.16373824,132.8,132.78,6.82968044]
[1765280277427,0.05373824,132.8,132.78,6.82968044]
[1765280278023,3.32373824,132.8,132.78,6.82968044]
[1765280280622,0.05373824,132.8,132.78,6.82968044]
[1765280282329,3.32373824,132.8,132.78,6.82968044]
[1765280282829,0.05373824,132.8,132.78,6.82968044]
[1765280283029,3.31373824,132.8,132.78,6.82968044]
[1765280283627,3.31373824,132.8,132.78,0.05168044]
[1765280284532,10.0377,132.79,132.78,0.05168044]
[1765280285534,3.26,132.77,132.71,105.4907]
[1765280285831,3.26,132.77,132.74,2.03230249]
[1765280286031,3.26,132.77,132.74,8.81250249]
[1765280286623,3.31319713,132.77,132.74,8.86135412]
[1765280287535,10.09199713,132.77,132.74,8.86135412]
[1765280288129,3.31319713,132.77,132.74,8.86135412]
[1765280289036,0.05319713,132.77,132.75,6.7794]
[1765280290036,3.31319713,132.77,132.75,6.7794]
[1765280290238,3.31319713,132.77,132.74,2.08115412]
[1765280290733,3.31319713,132.77,132.74,0.04885163]
[1765280290936,10.09189713,132.77,132.74,0.04885163]
[1765280291137,3.26,132.76,132.74,0.04885163]
[1765280291327,10.09189713,132.77,132.74,0.04885163]
[1765280293131,3.26,132.76,132.74,0.04885163]
[1765280294430,10.09189713,132.77,132.74,6.82915163]
[1765280296035,3.26,132.76,132.74,6.82915163]
[1765280301439,3.26,132.76,132.74,0.04885163]
[1765280307545,10.09189713,132.77,132.74,6.82915163]
[1765280307737,3.31319713,132.77,132.74,0.04885163]
[1765280309446,3.31319713,132.77,132.75,6.7797]
[1765280317045,0.05319713,132.77,132.75,6.7797]
[1765280321454,3.24319713,132.77,132.75,6.7797]
[1765280322254,3.24319713,132.77,132.74,0.04885163]
[1765280323549,3.19,132.76,132.74,0.04885163]
[1765280330650,3.19,132.76,132.74,6.82895163]
[1765280339273,3.19,132.76,132.75,6.7797]
[1765280339471,8.94981141,132.76,132.75,6.7797]
[1765280341466,5.75981141,132.76,132.75,6.7797]
[1765280342370,3.20319713,132.77,132.76,6.7792]
[1765280342570,8.96258452,132.77,132.76,6.7792]
[1765280345173,5.81258452,132.77,132.76,6.7792]
[1765280346171,0.05319713,132.77,132.76,6.7792]
[1765280350092,3.13319713,132.77,132.75,6.7797]
[1765280350589,3.13319713,132.77,132.74,6.82905163]
[1765280352190,8.81351083,132.76,132.74,0.04885163]
[1765280352492,3.08,132.76,132.74,0.04885163]
[1765280352688,9.8593,132.76,132.74,0.04885163]
[1765280352894,3.08,132.75,132.74,0.04885163]
[1765280353994,8.81378704,132.75,132.74,0.04885163]
[1765280360901,3.08,132.75,132.74,0.04885163]
[1765280367297,3.08,132.76,132.74,6.82915163]
[1765280374317,3.08,132.76,132.74,0.04885163]
[1765280375218,9.8592,132.76,132.74,0.04885163]
[1765280375516,3.2,132.75,132.74,0.04885163]
[1765280377319,10.03199713,132.77,132.74,6.82905163]
[1765280377521,8.93233175,132.76,132.74,6.82905163]
[1765280377820,3.2,132.76,132.74,6.82905163]
[1765280378206,3.25319713,132.77,132.74,6.82905163]
[1765280380116,3.25319713,132.77,132.75,6.7796]
[1765280381022,3.25319713,132.77,132.74,0.04885163]
[1765280383119,3.25319713,132.77,132.7,169.5401]
[1765280383120,1.89,132.74,132.65,3.12]
[1765280383418,1.89,132.69,132.65,3.12]
[1765280384018,1.94778422,132.68,132.66,3.17220514]
[1765280384921,1.94778422,132.68,132.66,0.05220514]
[1765280386024,7.80785561,132.67,132.66,0.05220514]
[1765280386624,1.89,132.67,132.66,0.05220514]
[1765280400331,8.6738,132.67,132.66,0.05220514]
[1765280400839,10.70757689,132.67,132.66,0.05220514]
[1765280401034,1.89,132.67,132.66,0.05220514]
[1765280401444,0.05778422,132.68,132.67,10.0238]
[1765280402334,1.94778422,132.68,132.67,6.7838]
[1765280402535,1.94778422,132.68,132.66,3.29220514]
[1765280403529,1.94778422,132.68,132.66,10.07650514]
[1765280407341,1.94778422,132.68,132.67,3.24]
[1765280411237,0.05778422,132.68,132.67,3.24]
[1765280411436,1.92778422,132.68,132.67,3.24]
[1765280414645,1.92778422,132.68,132.6,3.13]
[1765280414842,1.87,132.62,132.57,3.13]
[1765280415750,2.03377689,132.63,132.59,3.13]
[1765280415751,1.91763039,132.61,132.59,3.13]
[1765280416948,0.04763039,132.61,132.59,3.13]
[1765280417750,1.87,132.6,132.54,3.13]
[1765280418851,0.05759907,132.58,132.56,3.18687666]
[1765280419242,1.87,132.57,132.56,0.05687666]
[1765280426755,1.92759907,132.58,132.56,9.97617666]
[1765280426958,0.05759907,132.58,132.57,3.13]
[1765280431756,0.05759907,132.58,132.57,9.919]
[1765280434562,1.89,132.64,132.6,6.7871]
[1765280434761,1.89,132.64,132.62,3.07]
[1765280435667,0.05170257,132.64,132.63,3.07]
[1765280437663,0.05170257,132.64,132.63,9.8559]
[1765280439071,1.94170257,132.64,132.63,6.7859]
[1765280443174,0.05170257,132.64,132.63,9.8559]
[1765280449582,1.94170257,132.64,132.62,6.84113827]
[1765280449783,1.94170257,132.64,132.62,74.01113827]
[1765280449981,1.94170257,132.64,132.62,70.94113827]
[1765280450186,0.05170257,132.64,132.63,3.07]
[1765280454088,6.83710257,132.64,132.63,3.07]
[1765280454290,1.89,132.63,132.56,3.07]
[1765280454481,1.89,132.61,132.56,3.07]
[1765280454786,1.89,132.59,132.56,9.859]
[1765280455192,1.94625171,132.59,132.56,9.91029139]
[1765280457986,1.94625171,132.59,132.56,10.17029139]
[1765280458595,1.94625171,132.59,132.57,3.33]
[1765280460396,8.73425171,132.59,132.57,3.33]
[1765280460596,1.9,132.58,132.56,3.38129139]
[1765280462895,1.9,132.58,132.56,0.05129139]
[1765280463494,8.6887,132.58,132.56,0.05129139]
[1765280463699,1.89,132.57,132.56,0.05129139]
[1765280466295,8.679,132.57,132.56,0.05129139]
[1765280466704,1.89,132.56,132.51,3.18]
[1765280467203,1.89,132.57,132.53,3.18]
[1765280467804,0.05116949,132.56,132.54,3.23781516]
[1765280471399,0.05116949,132.56,132.55,3.18]
[1765280473705,0.05116949,132.56,132.55,9.97]
[1765280489300,0.05116949,132.56,132.55,12.00892903]
[1765280489902,8.9120151,132.64,132.56,3.22]
[1765280490105,5.80979531,132.63,132.61,3.22]
[1765280490403,1.89,132.64,132.61,3.22]
[1765280491004,1.94144375,132.64,132.61,3.27340873]
[1765280491511,8.72694375,132.64,132.61,3.27340873]
[1765280504719,1.89,132.63,132.61,3.27340873]
[1765280506111,1.94144375,132.64,132.62,3.22]
[1765280507624,0.05144375,132.64,132.62,10.0061]
[1765280507823,0.05144375,132.64,132.63,3.22]
[1765280515828,1.94144375,132.64,132.62,6.7861]
[1765280516131,0.05144375,132.64,132.63,3.22]
[1765280516931,1.94144375,132.64,132.63,3.22]
[1765280518624,0.05144375,132.64,132.63,3.22]
[1765280525833,5.78939206,132.68,132.64,3.08]
[1765280526137,7.47447834,132.7,132.66,3.08]
[1765280526433,5.78931489,132.69,132.66,3.08]
[1765280526750,5.78931489,132.68,132.66,3.13608661]
[1765280526940,6.7834,132.68,132.66,3.13608661]
[1765280527135,8.7334,132.68,132.66,3.13608661]
[1765280527433,1.95,132.67,132.66,0.05608661]
[1765280528229,7.74177308,132.67,132.66,0.05608661]
[1765280528425,14.52557308,132.67,132.66,0.05608661]
[1765280533941,5.79177308,132.67,132.66,3.13608661]
[1765280535542,5.79177308,132.67,132.66,9.92038661]
[1765280537346,8.79040839,132.69,132.66,9.92038661]
[1765280537546,5.78798683,132.68,132.66,9.92038661]
[1765280537745,8.79040839,132.69,132.66,9.92038661]
[1765280537948,5.78798683,132.68,132.66,9.92038661]
[1765280538244,2.00720839,132.69,132.67,3.08]
[1765280538445,5.78714433,132.68,132.67,3.08]
[1765280545364,7.73714433,132.68,132.67,3.08]
[1765280548369,5.78714433,132.68,132.67,3.08]
[1765280548774,0.05720839,132.69,132.68,3.35]
[1765280548976,5.83092644,132.69,132.68,3.35]
[1765280553272,0.05720839,132.69,132.68,3.35]
[1765280558476,0.05720839,132.69,132.68,10.1333]
[1765280566083,0.05720839,132.69,132.68,3.35]
[1765280567484,0.05720839,132.69,132.68,10.1333]
[1765280569688,1.99720839,132.69,132.68,3.35]
[1765280569985,1.94,132.68,132.66,3.40608661]
[1765280570385,1.94,132.68,132.66,0.05608661]
[1765280570586,8.7238,132.67,132.66,0.05608661]
[1765280570888,14.47808545,132.67,132.66,0.05608661]
[1765280572991,5.75428545,132.67,132.66,3.40608661]
[1765280573291,1.94,132.68,132.66,3.40608661]
[1765280576891,1.94,132.67,132.66,0.05608661]
[1765280577791,1.94,132.66,132.63,3.35]
[1765280578690,1.99328704,132.66,132.63,3.40391361]
[1765280579791,8.77768704,132.66,132.63,3.40391361]
[1765280581492,0.05328704,132.66,132.64,3.37]
[1765280581986,1.99328704,132.66,132.63,0.05391361]
[1765280582382,1.99328704,132.66,132.63,3.42391361]
[1765280582788,1.94,132.64,132.63,0.05391361]
[1765280584496,14.45750185,132.64,132.63,0.05391361]
[1765280586689,8.7254,132.64,132.63,0.05391361]
[1765280594399,1.94,132.64,132.63,0.05391361]
[1765280594698,8.7149,132.65,132.63,3.24391361]
[1765280595690,1.93,132.64,132.63,0.05391361]
[1765280598097,8.7154,132.64,132.63,0.05391361]
[1765280601400,8.7154,132.64,132.63,3.24391361]
[1765280601700,8.7154,132.64,132.63,0.05391361]
[1765280605101,6.7854,132.64,132.63,3.24391361]
[1765280605301,8.7154,132.64,132.63,0.05391361]
[1765280607894,1.93,132.64,132.63,3.24391361]
[1765280608805,1.93,132.64,132.63,0.05391361]
[1765280612200,8.7154,132.64,132.63,0.05391361]
[1765280614206,14.44303256,132.64,132.63,0.05391361]
[1765280618211,19.76796425,132.64,132.63,0.05391361]
[1765280618405,14.44303256,132.64,132.63,0.05391361]